lending/lending_fUSD_20251218
["ID","MTS","AMOUNT","RATE_DAILY","PERIOD"]
[398986772,1766046825812,-371.92432404,0.00041095,120]
[398986773,1766046825851,-503.71791669,0.00041095,120]
[398986774,1766046825890,-578.47008658,0.00041095,120]
[398986775,1766046826091,-500.0,0.00041095,120]
[398986776,1766046826135,-500.0,0.00041095,120]
[398986777,1766046826176,-162.0091275,0.00041095,120]
[398986778,1766046826218,-601.27791918,0.00041095,120]
[398986779,1766046826260,-500.0,0.00041095,120]
[398986780,1766046826301,-500.0,0.00041095,120]
[398986781,1766046826344,-500.0,0.00041095,120]
[398986782,1766046826384,-631.11425789,0.00041095,120]
[398986783,1766046826423,-500.0,0.00041095,120]
[398986784,1766046826460,-563.57164093,0.00041095,120]
[398986785,1766046826499,-500.0,0.00041095,120]
[398986786,1766046826538,-500.0,0.00041095,120]
[398986787,1766046826575,-500.0,0.00041095,120]
[398986788,1766046826613,-513.36415257,0.00041095,120]
[398986789,1766046826651,-500.0,0.00041095,120]
[398986790,1766046826690,-500.0,0.00041095,120]
[398986791,1766046826729,-500.0,0.00041095,120]
[398986792,1766046826767,-501.1240251,0.00041095,120]
[398986793,1766046826803,-500.0,0.00041095,120]
[398986794,1766046826840,-500.0,0.00041095,120]
[398986795,1766046826878,-500.0,0.00041095,120]
[398986796,1766046826915,-335.31,0.00041095,120]
[398986797,1766046826956,-501.70737832,0.00041095,120]
[398986798,1766046826993,-502.91721838,0.00041095,120]
[398986799,1766046827032,-558.36,0.00041095,120]
[398986800,1766046827071,-500.0,0.00041095,120]
[398986801,1766046827110,-250.84877186,0.00041095,120]
[398986802,1766046827148,-547.98649593,0.00041095,120]
[398986803,1766046827190,-502.78079497,0.00041095,120]
[398986804,1766046827236,-501.0292218,0.00041095,120]
[398986805,1766046827280,-500.0,0.00041095,120]
[398986806,1766046827321,-646.79161873,0.00041095,120]
[398986807,1766046827361,-500.0,0.00041095,120]
[398986808,1766046827401,-501.09340042,0.00041095,120]
[398986809,1766046827445,-506.173701,0.00041095,120]
[398986810,1766046827484,-500.0,0.00041095,120]
[398986811,1766046827521,-500.0,0.00041095,120]
[398986812,1766046827562,-500.0,0.00041095,120]
[398986813,1766046827602,-500.0,0.00041095,120]
[398986814,1766046827644,-394.98599309,0.00041095,120]
[398986815,1766046827687,-556.60062339,0.00041095,120]
[398986816,1766046827728,-500.82940482,0.00041095,120]
[398986817,1766046827768,-500.0,0.00041095,120]
[398986818,1766046827810,-500.0,0.00041095,120]
[398986819,1766046827850,-265.59650922,0.00041095,120]
[398986820,1766046827890,-500.0,0.00041095,120]
[398986821,1766046827929,-410.60678288,0.00041095,120]
[398986822,1766046827972,-533.93943076,0.00041095,120]
[398986823,1766046828014,-500.65665032,0.00041095,120]
[398986824,1766046828060,-500.41127825,0.00041095,120]
[398986825,1766046828100,-504.59138959,0.00041095,120]
[398986826,1766046828145,-499.01420951,0.00041095,120]
[398986827,1766046828191,-529.16102101,0.00041095,120]
[398986828,1766046828236,-500.0,0.00041095,120]
[398986829,1766046828280,-500.0,0.00041095,120]
[398986830,1766046828328,-500.0,0.00041095,120]
[398986831,1766046828372,-632.9106675,0.00041095,120]
[398986832,1766046828419,-500.0,0.00041095,120]
[398986833,1766046828463,-500.0,0.00041095,120]
[398986834,1766046828508,-548.50156567,0.00041095,120]
[398986835,1766046828554,-500.0,0.00041095,120]
[398986836,1766046828598,-307.3876892,0.00041095,120]
[398986837,1766046828641,-502.85828072,0.00041095,120]
[398986838,1766046828684,-503.74650339,0.00041095,120]
[398986839,1766046828725,-500.0,0.00041095,120]
[398986840,1766046828764,-500.0,0.00041095,120]
[398986841,1766046828804,-501.26686879,0.00041095,30]
[398986842,1766046828845,-200.86788518,0.00041095,120]
[398986843,1766046828886,-500.97798551,0.00041095,120]
[398986844,1766046828927,-501.48953864,0.00041095,120]
[398986845,1766046828967,-503.42632621,0.00041095,120]
[398986846,1766046829009,-500.0,0.00041095,120]
[398986847,1766046829051,-586.82893358,0.00041095,120]
[398986848,1766046829095,-500.0,0.00041095,120]
[398986849,1766046829139,-231.37447329,0.00041095,120]
[398986850,1766046829182,-539.57013745,0.00041095,120]
[398986851,1766046829225,-500.0,0.00041095,120]
[398986852,1766046829270,-361.76937332,0.00041095,120]
[398986853,1766046829314,-586.49747927,0.00041095,120]
[398986854,1766046829359,-528.77440473,0.00041095,120]
[398986855,1766046829406,-500.0,0.00041095,120]
[398986856,1766046829452,-500.0,0.00041095,120]
[398986857,1766046829492,-500.0,0.00041095,120]
[398986858,1766046829531,-243.01813768,0.00041095,120]
[398986859,1766046829570,-222.43009159,0.00041095,120]
[398986860,1766046830086,-260.52975875,0.00041095,120]
[398986861,1766046830132,-587.82314673,0.00041095,120]
[398986862,1766046830179,-500.0,0.00041095,120]
[398986863,1766046830226,-500.0,0.00041095,120]
[398986864,1766046830273,-500.0,0.00041095,120]
[398986865,1766046830318,-501.84059181,0.00041095,120]
[398986866,1766046830361,-500.0,0.00041095,120]
[398986867,1766046830407,-286.68593394,0.00041095,120]
[398986868,1766046830455,-501.31684419,0.00041095,120]
[398986869,1766046830498,-501.64895317,0.00041095,120]
[398986870,1766046830543,-500.0,0.00041095,120]
[398986871,1766046830590,-500.0,0.00041095,120]
[398986872,1766046830633,-500.0,0.00041095,120]
[398986873,1766046830676,-264.65011063,0.00041095,120]
[398986874,1766046830719,-500.0,0.00041095,120]
[398986875,1766046830760,-500.0,0.00041095,120]
[398986876,1766046830799,-307.81862447,0.00041095,120]
[398986877,1766046830841,-500.0,0.00041095,120]
[398986878,1766046830881,-500.0,0.00041095,120]
[398986879,1766046830924,-500.0,0.00041095,120]
[398986880,1766046830967,-500.0,0.00041095,120]
[398986881,1766046831009,-500.63353876,0.00041095,120]
[398986882,1766046831051,-500.0,0.00041095,120]
[398986883,1766046831093,-329.4,0.00041095,120]
[398986884,1766046831136,-500.0,0.00041095,120]
[398986885,1766046831177,-500.0,0.00041095,120]
[398986886,1766046831223,-500.0,0.00041095,120]
[398986887,1766046831267,-500.0,0.00041095,120]
[398986888,1766046831315,-502.05826689,0.00041095,120]
[398986889,1766046831363,-500.0,0.00041095,120]
[398986890,1766046831409,-500.0,0.00041095,120]
[398986891,1766046831456,-524.70443389,0.00041095,120]
[398986892,1766046831500,-500.0,0.00041095,120]
[398986893,1766046831540,-196.91033253,0.00041095,120]
[398986894,1766046831582,-500.0,0.00041095,120]
[398986895,1766046831623,-500.0,0.00041095,120]
[398986896,1766046831669,-500.0,0.00041095,120]
[398986897,1766046831712,-500.0,0.00041095,120]
[398986898,1766046831752,-187.69941225,0.00041095,120]
[398986899,1766046831791,-500.0,0.00041095,60]
[398986900,1766046831829,-500.0,0.00041095,60]
[398986901,1766046831867,-500.0,0.00041095,60]
[398986902,1766046831908,-500.49167293,0.00041095,120]
[398986903,1766046831949,-642.59374652,0.00041095,60]
[398986904,1766046831998,-500.0,0.00041095,120]
[398986905,1766046832048,-500.0,0.00041095,120]
[398986906,1766046832095,-500.0,0.00041095,120]
[398986907,1766046832138,-501.22718096,0.00041095,120]
[398986908,1766046832181,-500.0,0.00041095,120]
[398986909,1766046832223,-382.44737049,0.00041095,120]
[398986910,1766046832266,-500.76750814,0.00041095,120]
[398986911,1766046832316,-500.0,0.00041095,120]
[398986912,1766046832359,-500.0,0.00041095,120]
[398986913,1766046832400,-500.0,0.00041095,120]
[398986914,1766046832446,-538.54253041,0.00041095,120]
[398986915,1766046832486,-603.14025947,0.00041095,120]
[398986916,1766046832525,-551.14562734,0.00041095,120]
[398986917,1766046832565,-500.0,0.00041095,120]
[398986918,1766046832605,-500.0,0.00041095,120]
[398986919,1766046832644,-500.0,0.00041095,120]
[398986920,1766046832686,-500.0,0.00041095,120]
[398986921,1766046832727,-153.90290741,0.00041095,120]
[398986922,1766046832769,-157.13080597,0.00041095,120]
[398986923,1766046832809,-500.0,0.00041095,120]
[398986924,1766046832848,-554.63239627,0.00041095,120]
[398986925,1766046832889,-500.0,0.00041095,120]
[398986926,1766046833072,-501.70519051,0.00041095,120]
[398986927,1766046833117,-500.0,0.00041095,120]
[398986928,1766046833162,-368.33941361,0.00041095,120]
[398986929,1766046833208,-520.87298182,0.00041095,120]
[398986930,1766046833256,-500.81110158,0.00041095,120]
[398986931,1766046833312,-500.0,0.00041095,120]
[398986932,1766046833368,-500.0,0.00041095,120]
[398986933,1766046833416,-500.0,0.00041095,120]
[398986934,1766046833465,-500.0,0.00041095,120]
[398986935,1766046833510,-247.92016199,0.00041095,120]
[398986936,1766046833558,-500.0,0.00041095,120]
[398986937,1766046833607,-500.0,0.00041095,120]
[398986938,1766046833656,-500.0,0.00041095,120]
[398986939,1766046833703,-480.72949754,0.00041095,120]
[398986940,1766046833756,-500.0,0.00041095,120]
[398986941,1766046833806,-501.06739121,0.00041095,120]
[398986942,1766046833849,-500.0,0.00041095,120]
[398986943,1766046833893,-457.34188028,0.00041095,120]
[398986944,1766046833942,-500.22701695,0.00041095,120]
[398986945,1766046833993,-500.35310339,0.00041095,120]
[398986946,1766046834043,-500.0,0.00041095,120]
[398986947,1766046834090,-501.26093786,0.00041095,120]
[398986948,1766046834134,-501.72423688,0.00041095,120]
[398986949,1766046834176,-562.46219165,0.00041095,120]
[398986950,1766046834219,-500.0,0.00041095,120]
[398986951,1766046834263,-619.44730751,0.00041095,120]
[398986952,1766046834308,-500.0,0.00041095,120]
[398986953,1766046834354,-500.0,0.00041095,120]
[398986954,1766046834396,-501.01694553,0.00041095,120]
[398986955,1766046834442,-500.0,0.00041095,120]
[398986956,1766046834484,-200.26118614,0.00041095,120]
[398986957,1766046834524,-500.0,0.00041095,120]
[398986958,1766046834563,-500.0,0.00041095,120]
[398986959,1766046834602,-448.29127643,0.00041095,120]
[398986960,1766046834642,-501.41077311,0.00041095,120]
[398986961,1766046834682,-490.77754401,0.00041095,120]
[398986962,1766046834720,-501.4401396,0.00041095,120]
[398986963,1766046834759,-555.77760863,0.00041095,120]
[398986964,1766046834796,-638.61610135,0.00041095,120]
[398986965,1766046834835,-501.65716266,0.00041095,120]
[398986966,1766046834873,-500.0,0.00041095,120]
[398986967,1766046834913,-500.0,0.00041095,120]
[398986968,1766046834953,-500.0,0.00041095,120]
[398986969,1766046834997,-500.0,0.00041095,120]
[398986970,1766046835040,-500.0,0.00041095,120]
[398986971,1766046835083,-500.0,0.00041095,120]
[398986972,1766046835123,-500.0,0.00041095,120]
[398986973,1766046835165,-525.2997406,0.00041095,120]
[398986974,1766046835211,-500.0,0.00041095,120]
[398986975,1766046835258,-271.19442831,0.00041095,120]
[398986976,1766046835301,-500.0,0.00041095,120]
[398986977,1766046835343,-500.0,0.00041095,120]
[398986978,1766046835384,-500.37559294,0.00041095,120]
[398986979,1766046835426,-500.0,0.00041095,120]
[398986980,1766046835466,-500.0,0.00041095,120]
[398986981,1766046835508,-529.13164932,0.00041095,120]
[398986982,1766046835547,-472.03364761,0.00041095,120]
[398986983,1766046835588,-648.37758463,0.00041095,120]
[398986984,1766046835628,-501.50463798,0.00041095,120]
[398986985,1766046835666,-550.09289713,0.00041095,120]
[398986986,1766046835705,-500.47409058,0.00041095,120]
[398986987,1766046835744,-500.0,0.00041095,120]
[398986988,1766046835782,-500.0,0.00041095,120]
[398986989,1766046835820,-500.93840691,0.00041095,120]
[398986990,1766046835857,-502.96116438,0.00041095,120]
[398986991,1766046835893,-289.05173963,0.00041095,120]
[398986992,1766046835931,-502.23569244,0.00041095,120]
[398986993,1766046835969,-547.58759559,0.00041095,120]
[398986994,1766046836009,-500.0,0.00041095,120]
[398986995,1766046836050,-368.36143614,0.00041095,120]
[398986996,1766046836091,-500.0,0.00041095,120]
[398986997,1766046836129,-502.20003948,0.00041095,120]
[398986998,1766046836168,-200.90467369,0.00041095,120]
[398986999,1766046836207,-570.6124446,0.00041095,120]
[398987000,1766046836248,-501.26330324,0.00041095,120]
[398987001,1766046836289,-503.30578147,0.00041095,120]
[398987002,1766046836330,-500.0,0.00041095,120]
[398987003,1766046836374,-500.0,0.00041095,120]
[398987004,1766046836417,-250.45845399,0.00041095,120]
[398987005,1766046836462,-503.69886845,0.00041095,120]
[398987006,1766046836501,-501.26187709,0.00041095,120]
[398987007,1766046836539,-507.63312947,0.00041095,120]
[398987008,1766046836576,-500.0,0.00041095,120]
[398987009,1766046836614,-500.0,0.00041095,120]
[398987010,1766046836651,-500.0,0.00041095,120]
[398987011,1766046836689,-500.0,0.00041095,120]
[398987012,1766046836726,-500.0,0.00041095,120]
[398987013,1766046836764,-325.4070028,0.00041095,120]
[398987014,1766046836802,-381.55317862,0.00041095,120]
[398987015,1766046836840,-240.26298013,0.00041095,120]
[398987016,1766046836878,-363.55828947,0.00041095,120]
[398987017,1766046836918,-500.0,0.00041095,120]
[398987018,1766046836960,-500.0,0.00041095,120]
[398987019,1766046837151,-419.04813554,0.00041095,120]
[398987020,1766046837200,-500.0,0.00041095,120]
[398987021,1766046837249,-500.0,0.00041095,120]
[398987022,1766046837295,-643.16449159,0.00041095,120]
[398987023,1766046837342,-500.0,0.00041095,120]
[398987024,1766046837387,-500.0,0.00041095,120]
[398987025,1766046837434,-500.0,0.00041095,120]
[398987026,1766046837475,-500.0,0.00041095,120]
[398987027,1766046837516,-382.33319555,0.00041095,120]
[398987028,1766046837554,-500.0,0.00041095,120]
[398987029,1766046837593,-504.28113138,0.00041095,120]
[398987030,1766046837632,-500.0,0.00041095,120]
[398987031,1766046837681,-292.46505381,0.00041095,120]
[398987032,1766046837727,-505.79727235,0.00041095,120]
[398987033,1766046837767,-500.0,0.00041095,120]
[398987034,1766046837807,-372.4556093,0.00041095,120]
[398987035,1766046837848,-501.85757454,0.00041095,120]
[398987036,1766046837892,-550.59210663,0.00041095,120]
[398987037,1766046837930,-500.0,0.00041095,120]
[398987038,1766046837971,-399.73032891,0.00041095,120]
[398987039,1766046838015,-500.0,0.00041095,60]
[398987040,1766046838059,-500.0,0.00041095,60]
[398987041,1766046838103,-500.0,0.00041095,60]
[398987042,1766046838146,-501.0748893,0.00041095,120]
[398987043,1766046838191,-274.26419499,0.00041095,60]
[398987044,1766046838236,-500.0,0.00041095,120]
[398987045,1766046838282,-500.0,0.00041095,120]
[398987046,1766046838329,-215.5252173,0.00041095,120]
[398987047,1766046838377,-413.47429263,0.00041095,120]
[398987048,1766046838434,-500.0,0.00041095,120]
[398987049,1766046838499,-156.04251482,0.00041095,120]
[398987050,1766046838558,-500.0,0.00041095,120]
[398987051,1766046838605,-500.0,0.00041095,120]
[398987052,1766046838652,-176.36309672,0.00041095,120]
[398987053,1766046838693,-571.82916936,0.00041095,120]
[398987054,1766046838736,-500.6673855,0.00041095,120]
[398987055,1766046838776,-500.0,0.00041095,120]
[398987056,1766046838817,-425.97151853,0.00041095,120]
[398987057,1766046838857,-162.66012692,0.00041095,120]
[398987058,1766046838897,-500.0,0.00041095,120]
[398987059,1766046838935,-500.27226992,0.00041095,120]
[398987060,1766046838977,-500.0,0.00041095,120]
[398987061,1766046839017,-497.6340281,0.00041095,120]
[398987062,1766046839059,-500.74403876,0.00041095,120]
[398987063,1766046839100,-504.06219869,0.00041095,120]
[398987064,1766046839139,-501.10610128,0.00041095,120]
[398987065,1766046839181,-500.0,0.00041095,120]
[398987066,1766046839222,-500.0,0.00041095,120]
[398987067,1766046839265,-500.0,0.00041095,120]
[398987068,1766046839307,-500.0,0.00041095,120]
[398987069,1766046839353,-500.0,0.00041095,120]
[398987070,1766046839398,-492.7558173,0.00041095,120]
[398987071,1766046839448,-500.0,0.00041095,120]
[398987072,1766046839493,-500.0,0.00041095,120]
[398987073,1766046839534,-501.57930838,0.00041095,120]
[398987074,1766046839574,-500.24853822,0.00041095,120]
[398987075,1766046839613,-500.0,0.00041095,120]
[398987076,1766046839659,-500.0,0.00041095,120]
[398987077,1766046839703,-500.0,0.00041095,120]
[398987078,1766046839744,-372.2067411,0.00041095,120]
[398987079,1766046839783,-500.0,0.00041095,120]
[398987080,1766046839822,-500.0,0.00041095,120]
[398987081,1766046839860,-500.0,0.00041095,120]
[398987082,1766046839898,-500.0,0.00041095,120]
[398987083,1766046839936,-500.0,0.00041095,120]
[398987084,1766046839975,-500.0,0.00041095,120]
[398987085,1766046840017,-378.17443631,0.00041095,120]
[398987086,1766046840060,-500.0,0.00041095,120]
[398987087,1766046840104,-423.23804524,0.00041095,120]
[398987088,1766046840151,-529.76822016,0.00041095,120]
[398987089,1766046840200,-500.0,0.00041095,120]
[398987090,1766046840252,-604.00724415,0.00041095,120]
[398987091,1766046840305,-500.0,0.00041095,120]
[398987092,1766046840353,-500.0,0.00041095,120]
[398987093,1766046840404,-505.35235686,0.00041095,120]
[398987094,1766046840459,-500.0,0.00041095,120]
[398987095,1766046840509,-433.07638453,0.00041095,120]
[398987096,1766046840557,-503.28338927,0.00041095,120]
[398987097,1766046840600,-500.0,0.00041095,120]
[398987098,1766046840647,-389.4468403,0.00041095,120]
[398987099,1766046840691,-500.0,0.00041095,120]
[398987100,1766046840734,-501.90274106,0.00041095,120]
[398987101,1766046840779,-500.0,0.00041095,120]
[398987102,1766046840822,-501.23201916,0.00041095,120]
[398987103,1766046841211,-500.0,0.00041095,120]
[398987104,1766046841292,-500.0,0.00041095,120]
[398987105,1766046841344,-500.0,0.00041095,120]
[398987106,1766046841398,-549.52705014,0.00041095,120]
[398987107,1766046841456,-413.95,0.00041095,120]
[398987108,1766046841508,-500.59076747,0.00041095,120]
[398987109,1766046841556,-500.0,0.00041095,120]
[398987110,1766046841600,-500.78309289,0.00041095,120]
[398987111,1766046841640,-500.0,0.00041095,120]
[398987112,1766046841680,-500.0,0.00041095,120]
[398987113,1766046841722,-500.0,0.00041095,120]
[398987114,1766046841767,-500.0,0.00041095,120]
[398987115,1766046841813,-500.0,0.00041095,120]
[398987116,1766046841860,-551.63839436,0.00041095,120]
[398987117,1766046841905,-524.03975013,0.00041095,120]
[398987118,1766046841947,-500.59391336,0.00041095,120]
[398987119,1766046841990,-500.0,0.00041095,120]
[398987120,1766046842032,-500.27705888,0.00041095,120]
[398987121,1766046842074,-500.0,0.00041095,120]
[398987122,1766046842114,-358.68622237,0.00041095,120]
[398987123,1766046842155,-500.0,0.00041095,120]
[398987124,1766046842197,-501.40327195,0.00041095,120]
[398987125,1766046842241,-500.0,0.00041095,120]
[398987126,1766046842289,-500.0,0.00041095,120]
[398987127,1766046842338,-394.74031832,0.00041095,120]
[398987128,1766046842384,-500.61757821,0.00041095,120]
[398987129,1766046842429,-501.22582217,0.00041095,120]
[398987130,1766046842474,-500.0,0.00041095,120]
[398987131,1766046842520,-337.08705142,0.00041095,120]
[398987132,1766046842564,-500.0,0.00041095,120]
[398987133,1766046842609,-500.0,0.00041095,120]
[398987134,1766046842651,-500.54419379,0.00041095,120]
[398987135,1766046842693,-558.50958305,0.00041095,120]
[398987136,1766046842735,-488.81685568,0.00041095,120]
[398987137,1766046842775,-501.51517961,0.00041095,120]
[398987138,1766046842816,-500.0,0.00041095,120]
[398987139,1766046842855,-500.0,0.00041095,120]
[398987140,1766046842896,-500.0,0.00041095,120]
[398987141,1766046842936,-500.0,0.00041095,120]
[398987142,1766046842978,-500.0,0.00041095,120]
[398987143,1766046843024,-316.23640969,0.00041095,120]
[398987144,1766046843070,-234.31893512,0.00041095,120]
[398987145,1766046843119,-503.04911615,0.00041095,120]
[398987146,1766046843172,-548.67612698,0.00041095,120]
[398987147,1766046843227,-504.96889075,0.00041095,120]
[398987148,1766046843284,-500.0,0.00041095,120]
[398987149,1766046843339,-500.0,0.00041095,120]
[398987150,1766046843394,-165.6674768,0.00041095,120]
[398987151,1766046843450,-501.59099567,0.00041095,120]
[398987152,1766046843507,-500.88251219,0.00041095,120]
[398987153,1766046843560,-500.0,0.00041095,120]
[398987154,1766046843614,-500.0,0.00041095,120]
[398987155,1766046843666,-509.55254153,0.00041095,120]
[398987156,1766046843718,-334.71267769,0.00041095,120]
[398987157,1766046843767,-582.55664267,0.00041095,120]
[398987158,1766046843820,-500.0,0.00041095,120]
[398987159,1766046843871,-500.0,0.00041095,120]
[398987160,1766046843918,-497.44730941,0.00041095,120]
[398987161,1766046843968,-500.0,0.00041095,120]
[398987162,1766046844031,-500.64833563,0.00041095,120]
[398987163,1766046844087,-500.0,0.00041095,120]
[398987164,1766046844140,-605.73624544,0.00041095,120]
[398987165,1766046844192,-500.32995709,0.00041095,120]
[398987166,1766046844245,-501.86242682,0.00041095,120]
[398987167,1766046844299,-501.24463985,0.00041095,120]
[398987168,1766046844355,-500.0,0.00041095,120]
[398987169,1766046844601,-508.17083106,0.00041095,120]
[398987170,1766046844653,-500.0,0.00041095,120]
[398987171,1766046844706,-500.0,0.00041095,120]
[398987172,1766046844759,-500.28080379,0.00041095,120]
[398987173,1766046844811,-500.0,0.00041095,120]
[398987174,1766046844863,-403.21670927,0.00041095,120]
[398987175,1766046844915,-500.0,0.00041095,120]
[398987176,1766046844969,-501.93683905,0.00041095,120]
[398987177,1766046845022,-500.42440393,0.00041095,120]
[398987178,1766046845078,-501.01716301,0.00041095,120]
[398987179,1766046845131,-500.0,0.00041095,120]
[398987180,1766046845187,-500.0,0.00041095,120]
[398987181,1766046845240,-500.0,0.00041095,120]
[398987182,1766046845301,-190.56599226,0.00041095,120]
[398987183,1766046845355,-256.9411757,0.00041095,120]
[398987184,1766046845411,-500.96180012,0.00041095,120]
[398987185,1766046845472,-568.50787796,0.00041095,120]
[398987186,1766046845529,-501.36917643,0.00041095,120]
[398987187,1766046845581,-543.59478618,0.00041095,120]
[398987188,1766046845633,-500.0,0.00041095,120]
[398987189,1766046845685,-183.48017161,0.00041095,120]
[398987190,1766046845736,-500.0,0.00041095,120]
[398987191,1766046845787,-500.0,0.00041095,120]
[398987192,1766046845837,-499.75889184,0.00041095,120]
[398987193,1766046845886,-500.0,0.00041095,120]
[398987194,1766046845935,-614.45930188,0.00041095,120]
[398987195,1766046845986,-502.44786529,0.00041095,120]
[398987196,1766046846036,-502.95466403,0.00041095,120]
[398987197,1766046846087,-500.0,0.00041095,120]
[398987198,1766046846141,-646.50548144,0.00041095,120]
[398987199,1766046846193,-500.0,0.00041095,120]
[398987200,1766046846246,-557.04876906,0.00041095,120]
[398987201,1766046846299,-500.78374373,0.00041095,120]
[398987202,1766046846352,-544.12188799,0.00041095,120]
[398987203,1766046846402,-500.0,0.00041095,120]
[398987204,1766046846460,-502.84746752,0.00041095,120]
[398987205,1766046846511,-500.0,0.00041095,120]
[398987206,1766046846563,-633.95949736,0.00041095,120]
[398987207,1766046846611,-500.0,0.00041095,120]
[398987208,1766046846660,-562.39829661,0.00041095,120]
[398987209,1766046846709,-333.02862101,0.00041095,120]
[398987210,1766046846758,-520.10095486,0.00041095,120]
[398987211,1766046846805,-503.2964897,0.00041095,120]
[398987212,1766046846857,-502.60199431,0.00041095,120]
[398987213,1766046846912,-501.36498853,0.00041095,120]
[398987214,1766046846967,-501.57356462,0.00041095,120]
[398987215,1766046847017,-500.67166485,0.00041095,120]
[398987216,1766046847068,-500.86148171,0.00041095,120]
[398987217,1766046847121,-500.0,0.00041095,120]
[398987218,1766046847172,-500.0,0.00041095,120]
[398987219,1766046847228,-591.56833305,0.00041095,120]
[398987220,1766046847280,-175.50173279,0.00041095,120]
[398987221,1766046847333,-500.0,0.00041095,120]
[398987222,1766046847391,-500.0,0.00041095,120]
[398987223,1766046847445,-500.0,0.00041095,120]
[398987224,1766046847500,-500.0,0.00041095,120]
[398987225,1766046847552,-500.0,0.00041095,120]
[398987226,1766046847603,-500.0,0.00041095,120]
[398987227,1766046847654,-363.96057966,0.00041095,120]
[398987228,1766046847705,-352.36640921,0.00041095,120]
[398987229,1766046847758,-500.0,0.00041095,120]
[398987230,1766046847808,-365.22859541,0.00041095,120]
[398987231,1766046847859,-500.0,0.00041095,120]
[398987232,1766046847907,-421.08762167,0.00041095,120]
[398987233,1766046847959,-500.50193099,0.00041095,120]
[398987234,1766046848011,-501.35140027,0.00041095,120]
[398987235,1766046848067,-500.0,0.00041095,120]
[398987236,1766046848122,-642.93839619,0.00041095,120]
[398987237,1766046848181,-500.0,0.00041095,120]
[398987238,1766046848235,-501.13407876,0.00041095,120]
[398987239,1766046848289,-500.0,0.00041095,120]
[398987240,1766046848346,-500.0,0.00041095,120]
[398987241,1766046848403,-500.0,0.00041095,120]
[398987242,1766046848461,-500.0,0.00041095,120]
[398987243,1766046848515,-500.0,0.00041095,120]
[398987244,1766046848572,-581.79684028,0.00041095,120]
[398987245,1766046848642,-589.68836635,0.00041095,120]
[398987246,1766046848702,-500.0,0.00041095,120]
[398987247,1766046848760,-529.50303465,0.00041095,120]
[398987248,1766046848815,-475.03,0.00041095,120]
[398987249,1766046848871,-500.0,0.00041095,120]
[398987250,1766046848926,-500.0,0.00041095,120]
[398987251,1766046848980,-501.91005137,0.00041095,120]
[398987252,1766046849036,-340.91060999,0.00041095,120]
[398987253,1766046849089,-640.89036781,0.00041095,120]
[398987254,1766046849143,-500.0,0.00041095,120]
[398987255,1766046849195,-431.86366888,0.00041095,120]
[398987256,1766046849251,-500.0,0.00041095,120]
[398987257,1766046849307,-500.0,0.00041095,120]
[398987258,1766046849361,-500.0,0.00041095,120]
[398987259,1766046849418,-216.8157256,0.00041095,120]
[398987260,1766046849469,-502.00132735,0.00041095,120]
[398987261,1766046849522,-581.44290001,0.00041095,120]
[398987262,1766046849575,-500.0,0.00041095,120]
[398987263,1766046849992,-589.08366473,0.00041095,120]
[398987264,1766046850045,-372.33248762,0.00041095,120]
[398987265,1766046850096,-508.51345501,0.00041095,120]
[398987266,1766046850146,-500.0,0.00041095,120]
[398987267,1766046850195,-443.07851036,0.00041095,120]
[398987268,1766046850245,-501.71709668,0.00041095,120]
[398987269,1766046850295,-500.0,0.00041095,120]
[398987270,1766046850344,-162.5367924,0.00041095,120]
[398987271,1766046850391,-502.58589416,0.00041095,120]